Cogmind - Beta 13 @@@ ROGUE MODE // 2024.04.11 @ 00:08:40 // Winter2022/Polymind Player: Nebula avali Result: Destroyed by G-47 Trooper with Particle Gun Performance ------------- Evolutions (0) 0 Regions Visited (1) 200 Robots Destroyed (0) 0 Value Destroyed (0) 0 Prototype IDs (0) 0 Alien Tech Used (0) 0 Bonus (645) 645 TOTAL SCORE: 275 Bonus ------- Polymind Skill 645 Cogmind --------- Core Integrity 0/250 Matter 0/0 Energy 24/25 System Corruption 0% Temperature Cool (33) Movement Core (50) Location -10/Materials Parts ------- > --- POWER (1) -------- (None) > --- PROPULSION (2) --- (None) > --- UTILITY (1) ------ Hacking Suite > --- WEAPON (1) ------- (None) > --- INVENTORY (1) ---- (None) Peak State ------------ > --- POWER ------------ Light Ion Engine > --- PROPULSION ------- Hover Unit Hover Unit > --- UTILITY ---------- Hacking Suite > --- WEAPON ----------- Datajack > --- INVENTORY -------- (None) [Rating: 7] Favorites ----------- Power Light Ion Engine Engine Light Ion Engine Propulsion Hover Unit Hover Unit Hover Unit Utility Hacking Suite Hackware Hacking Suite Weapon Datajack Special Melee Weapon Datajack Build | -11 -10 ------- Run | Yrd Mat Slots Evolved . | . . Power . | . . Propulsion . | . . Utility . | . . Weapon . | . . Parts Attached . | . . Power . | . . Engine . | . . Core . | . . Reactor . | . . Propulsion . | . . Treads . | . . Leg . | . . Wheel . | . . Hover . | . . Flight . | . . Utility . | . . Device . | . . Storage . | . . Processor . | . . Hackware . | . . Protection . | . . Artifact . | . . Weapon . | . . Energy Gun . | . . Energy Cannon . | . . Ballistic Gun . | . . Ballistic Cannon . | . . Launcher . | . . Special Weapon . | . . Impact Weapon . | . . Slashing Weapon . | . . Piercing Weapon . | . . Special Melee Weapon . | . . Unidentified Prototypes . | . . Parts Lost 7 | . 7 Power 2 | . 2 Propulsion 4 | . 4 Utility . | . . Weapon 1 | . 1 Highest Loss Streak 4 | . 4 To Critical Strikes . | . . Average Slot Usage (%) 86 | . 86 Engine 15 | . 15 Hover 32 | . 32 Hackware 20 | . 20 Special Melee Weapon 19 | . 19 Naked Turns 7 | . 7 Heaviest Build 4 | . 4 Greatest Support 12 | 3 12 Greatest Overweight (x) . | . . Average Overweight (x) . | . . Largest Inventory Capacity 1 | . 1 Average Capacity . | . . Most Carried . | . . Average Carried . | . . Final Capacity 1 | . 1 Final Carried . | . . Class Distribution -------------------- 96% | Operator 3% | Cogmind Dominant Class ---------------- Operator | -10/Materials Resources | -11 -10 ----------- Run | Yrd Mat Matter Collected . | . . Remotely . | . . Salvage Created . | . . Parts . | . . Haulers Intercepted . | . . Recyclers Shooed . | . . Parts Field Recycled . | . . Retrieved Matter . | . . Parts Self-Destructed . | . . Prevented . | . . Kills | -11 -10 ------- Run | Yrd Mat Combat Hostiles Destroyed . | . . Classes Destroyed . | . . Best Kill Streak . | . . Combat Bots Only . | . . Max Kills in Single Turn . | . . Gunslinging . | . . Exploded . | . . Melee . | . . Uniques/NPCs Destroyed . | . . Combat | -11 -10 -------- Run | Yrd Mat Hostile Shots Fired 97 | . 97 Missed 48 | . 48 Damage Taken 466 | . 466 Core 255 | . 255 Absorbed by Shields . | . . Core Remaining (%) 100 | 100 . Volleys Fired . | . . Largest . | . . Hottest . | . . Shots Fired . | . . Gun . | . . Cannon . | . . Launcher . | . . Special . | . . Kinetic . | . . Thermal . | . . Explosive . | . . Electromagnetic . | . . Robot Hit Streak . | . . Robot Miss Streak . | . . Penetration Max . | . . Secondary Targets . | . . Shots Hit Robots 6 | . 6 Core Hits 2 | . 2 Critical Kills . | . . Critical Parts Destroyed . | . . Critical Strikes . | . . Melee Attacks 7 | . 7 Impact . | . . Slashing . | . . Piercing . | . . Sneak Attacks 4 | . 4 Combat Hostiles . | . . Follow-up Attacks . | . . Damage Inflicted 17 | . 17 Guns . | . . Cannons . | . . Explosions . | . . Melee . | . . Ramming 17 | . 17 Kinetic . | . . Thermal . | . . Explosive . | . . Electromagnetic . | . . Impact . | . . Slashing . | . . Piercing . | . . Highest Corruption . | . . Average Corruption . | . . Corruption Purged . | . . Corruption Blocked . | . . Overload Shots . | . . Overflow Damage . | . . Projectiles . | . . Explosions . | . . Melee . | . . Knockbacks . | . . Impact . | . . Kinetic . | . . Secondary . | . . Self-Inflicted Damage 7 | . 7 Shots . | . . Rammed 6 | . 6 Targets Rammed 6 | . 6 Kicked . | . . Crushed . | . . Highest Temperature . | . . Average Temperature . | . . Received Heat Transfer 129 | . 129 Siege Activations . | . . Robots Corrupted . | . . Combat Hostiles . | . . Parts Fried . | . . Impact Corruptions . | . . Robots Melted . | . . Combat Hostiles . | . . Parts Melted . | . . Heat Transferred . | . . Parts Sabotaged . | . . Parts Stolen . | . . Parts Stripped . | . . Power Chain Reactions . | . . Alert | -11 -10 ------- Run | Yrd Mat Peak Influence 104 | . 104 Initial . | . . Average 57 | . 57 Maximum Alert Level . | . . Low Security (%) 100 | . 100 Level 1 . | . . Level 2 . | . . Level 3 . | . . Level 4 . | . . Level 5 . | . . High Security . | . . Max Security . | . . Squads Dispatched 1 | . 1 Investigation . | . . Extermination . | . . Reinforcement 1 | . 1 Assault . | . . Garrison . | . . Intercept . | . . Searches Triggered . | . . Construction Impeded . | . . Haulers Reinforced . | . . Active Scanning Responses . | . . Cargo Convoy Interrupts . | . . Stealth | -11 -10 --------- Run | Yrd Mat Distress Signals 1 | . 1 Communications Jammed . | . . Distress Signals . | . . Times Spotted 17 | . 17 Peak Tracking Total 7 | . 7 Tactical Retreats 2 | . 2 Traps | -11 -10 ------- Run | Yrd Mat Traps Triggered . | . . Indirectly . | . . Trap Hack Attempts . | . . Triggered . | . . Disarmed . | . . Reprogrammed . | . . Reused . | . . Traps Extracted . | . . Installed . | . . Triggered . | . . Machines | -11 -10 ---------- Run | Yrd Mat Machines Disabled . | . . Max in Single Turn . | . . Machines Repaired . | . . Machines Dismantled . | . . Machines Sabotaged . | . . Overloaded Fab Kills . | . . Hacking | -11 -10 --------- Run | Yrd Mat Machines Accessed 2 | . 2 Terminals 1 | . 1 Fabricators . | . . Repair Stations 1 | . 1 Recycling Units . | . . Scanalyzers . | . . Garrison Access . | . . Total Hacks 6 | . 6 Successful 3 | . 3 Failed 3 | . 3 Catastrophic . | . . Database Lockouts . | . . Manual . | . . Terminals 3 | . 3 Fabricators . | . . Repair Stations 3 | . 3 Recycling Units . | . . Scanalyzers . | . . Garrison Access . | . . Terminal Hacks 2 | . 2 Branch Access Points 1 | . 1 Emergency Access Points 1 | . 1 Fabricator Hacks . | . . Repair Station Hacks 1 | . 1 Refit 1 | . 1 Recycling Unit Hacks . | . . Scanalyzer . | . . Garrison Access Hacks . | . . Unauthorized Hacks . | . . Terminals . | . . Fabricators . | . . Repair Stations . | . . Recycling Units . | . . Scanalyzers . | . . Garrison Access . | . . Data Cores Recovered . | . . Used . | . . Hacking Detections 1 | . 1 Full Trace Events 1 | . 1 Feedback Events . | . . Feedback Blocked . | . . Robot Schematics Acquired . | . . Robots Built . | . . Authchips . | . . Time . | . . Total Robot Build Rating . | . . Part Schematics Acquired . | . . Parts Built . | . . Authchips . | . . Time . | . . Total Part Build Rating . | . . Parts Repaired . | . . Time . | . . Parts Recycled . | . . Recycled Matter . | . . Retrieved Matter . | . . Retrieved Components . | . . Parts Scanalyzed . | . . Part Schematics Acquired . | . . Parts Damaged . | . . Bothacking | -11 -10 ------------ Run | Yrd Mat Used RIF Installer . | . . Robots Hacked 5 | . 5 Non-combat 5 | . 5 Combat . | . . Robot Hacks Applied 5 | . 5 parse_system 1 | . 1 no_distress 2 | . 2 check_alert 1 | . 1 find_terminals 1 | . 1 Relay Couplers Released . | . . Fabnet Peak Effective % . | . . Robots Rewired . | . . Allies Hacked . | . . Hacks Repelled . | . . Allies | -11 -10 -------- Run | Yrd Mat Total Allies . | . . Largest Group . | . . Highest-Rated Group . | . . Highest-Rated Ally . | . . Total Orders . | . . Ally Attacks . | . . Total Damage . | . . Kills . | . . Allies Corrupted . | . . Allies Melted . | . . Intel | -11 -10 ------- Run | Yrd Mat Robot Analysis Total 1 | . 1 Derelict Logs Recovered . | . . Drone Launches . | . . Drone Recoveries . | . . Exploration | -11 -10 ------------- Run | Yrd Mat Turns Passed 231 | . 231 Spaces Moved 283 | 1 282 Core 57 | 1 56 Treads . | . . Legs . | . . Wheels . | . . Hover 226 | . 226 Flight . | . . Fastest Speed 50 | 50 50 Average Speed 59 | 50 59 Slowest Speed 80 | 50 80 Overloaded Moves . | . . Propulsion Burnouts . | . . Robots Hopped . | . . Cave-ins Triggered . | . . Exploration Rate (%) 29 | 2 57 Regions Visited 1 Branch Regions . Pre-discovered Areas . | . . Known Exits Taken . | . . Unknown Exits Taken 1 | 1 . Scrap Searched . | . . Spaces Dug . | . . Terrain Destroyed . | . . Melee . | . . Projectile . | . . AOE . | . . Terrain Rammed . | . . Walls Destroyed . | . . Machines Disabled . | . . Actions | -11 -10 --------- Run | Yrd Mat Total 342 | . 342 Wait 47 | . 47 Move 282 | . 282 Hop . | . . Pick Up . | . . Fast Attach . | . . Attach . | . . Detach . | . . Swap . | . . Drop . | . . Fire . | . . Melee 7 | . 7 Ram 6 | . 6 Kick . | . . Crush . | . . Escape Stasis . | . . Rewire . | . . Trap . | . . Miscellaneous . | . . Route ------- -11/Scrapyard -10/Materials (discovered 3 exits: [*Mat x2] / Min) History --------- Turn | Location | Event 1 | -11/Scrapyard | Discovered new exit (range 0) 1 | -11/Scrapyard | Entered Materials 49 | -10/Materials | Identified exit to Mines 113 | -10/Materials | Discovered new exit (range 10) 151 | -10/Materials | Discovered new exit (range 13) 194 | -10/Materials | Lost 3 parts (1p2n) 205 | -10/Materials | Core integrity fell below 50% 229 | -10/Materials | Core integrity fell below 20% 232 | -10/Materials | Destroyed by G-47 Trooper with Particle Gun Last Messages --------------- Backup Power I x1 Backup Propulsion I x2 00182_ Slammed into S-10 Pest. 00196_ Slammed into U-05 Engineer. 00199_ Slammed into S-10 Pest. 00200_ S-10 Pest destroyed. 00202_ O-16 Technician: "IFF HANDSHAKE FAILED. SECURING TERMINAL." 00202_ Slammed into G-47 Trooper. 00202_ Backup Propulsion I broken. 00202_ Destabilizing: Short circuit. 00202_ Broken Backup Propulsion I destroyed. 00204_ S-10 Pest destroyed. 00207_ ALERT: Hostiles spotted, dispatching reinforcements to Terminal M008. 00209_ Learned position of new hidden door. 00223_ K-01 Serf collects debris. 00224_ Backup Power I destroyed. 00226_ Datajack destroyed. 00227_ Backup Propulsion I destroyed. 00232_ Critical hit (Burn: +37). Map ----- +----------------------------------------------------+ | ?????????????????? ?? #???????????????????? | | ?????????????????# """ #???????????????????? | | ?????########????#""""" #???????????????????? | | ?????# ! #????#""""" #??#####????????????? | | ??#### ! #????#""""" #??# #????????????? | | ??# # #????# """ #??# < #????????????? | | ??# # * = #????# * #??# #????????????? | | ??# %+ ! #??###+####+######### #########????? | | ??# #[ #??# [ ! # + ## ##[[[[]]#????? | | ?##%=########### # # ## ##[[[[]]#????? | | ?# = ##### # # # ## ## #????# | | ?# = + ! / + # # #????# | | ?# T [%= T # # # # #????? | | ?# ##### # # # # T #????? | | ?########### ## ! # # # #????? | | ????# """ # ######## ####### #### ###### | | ????# "Y" + ######## #????####/###### | | ????# # #????# # | | ????# !!# ###### # | | ????# !?#####+##### # # """"""" # ###### | | ????# ???# ## # # """"""" # #????? | | ???###########""" ## # # """"""" # #????? | | ???# #"R ## # # """"""" # #????? | | ???# #""" ## # # """"""" # #????? | | ???# # ## # # # #????? | | ???# # ##g o #######+### +????? | | ?????######+##########g # t/ #????? | | ??######### # #### #????? | | ?? [ # ######## ######??# """ #????? | | ??? # # ?# #???????# """ #????? | | ???"" """ # # # #???????# """ #????? | | ???"" """ + # # #???????# #????? | | ???"" """ # # + +???????# #????? | | ?? # # # #???????# ^ ????# | | ? # # ! # #???????# ????# | | # # ######## ##??????# "???# | | ########### ####### #?????? T???# | | ??????# #?????? ^^ """^ "???# | | ??????# < T #?????? """^ ????# | | ??????# #?????# ^"??? ??????# | | ??????# # ###### #?????? ??????????# | | ?????# # #????#######?????? ???????????# | | ?????#! !# #?????????????????????????????????# | | ?????##!!!!## #?????????????????????????????????? | | ??????#####?# #?????????????????????????????????? | | ????????????# #?????????????????????????????????? | | ????????????# #?????????????????????????????????? | | ????????????# #?????????????????????????????????? | | ????????????# #?????????????????????????????????? | | ????????????# #?????????????????????????????????? | +----------------------------------------------------+ Best States ------------- Heat Dissipation 15 Energy Generation 10 Energy Capacity 50 Sight Range 14 Terrain Scan Density 10 Evasion (%) 53 Offensive Hacking 10 Item Schematics ----------------- None Robot Schematics ------------------ None Fabricated ------------ Nothing Alien Tech Used ----------------- None Achievements -------------- None Challenges ------------ None Polymind | -11 -10 ---------- Run | Yrd Mat Hosts 1 | . 1 Combat Hostiles . | . . Allies . | . . Unique Host Classes 1 | . 1 Average Host Suspicion 88 | . 88 Unsuspicious Activity 7 | . 7 Returns to Shadow . | . . Fuzzy Dispatches . | . . Protomatter Created . | . . Used 5 | . 5 Decayed . | . . Highest Spend 5 | . 5 Game ------ Seed ScanWardroneMultirail Manual? 0 Play Time 00:07:45 Cumulative 29.4 hours Start 2024.04.11 @ 00:04:36 End 2024.04.11 @ 00:08:40 Sessions 1 Manual Loads 0 Difficulty Rogue Special Mode Winter2022/Polymind Game No. 37 Rogue 36 Adventurer 1 Explorer 0 Win Type - Total 1 Types 1/0/0/0/0/0/0/0/0 Lore% 18 Gallery% 42 Achievement% 34 Wizard Run 0 Options --------- Layout 0 ASCII 0 Keyboard 0 Movement Numpad Keybinds 0 Fullscreen 1 Font 18/SmallcapsGlow Map View 76x50 Zoom Use 0% Tactical HUD 1 Map Filters NONE Filters NONE Steam 1 RUN: 5218895a-d318-4fb7-94cd-a87722743272